[Event "Titled Tuesday Blitz May 2 Early 2023"]
[White "Dinu, Dumitru-Daniel"]
[Black "Clawitter, Craig"]
[WhiteFideId "1208403"]
[BlackFideId "2023105"]
[WhiteElo "2240"]
[BlackElo "2050"]
[Result "1/2-1/2"]
[Round "11"]
[TimeControl "180+2"]
[Date "2023.05.03"]
[WhiteClock "0:00:00"]
[BlackClock "0:00:00"]

1. e4 {[%clk 0:00:01]}  e6 {[%clk 0:00:01]} 2. d4 {[%clk 0:00:01]}  d5 {[%clk 0:00:01]} 3. exd5 {[%clk 0:00:01]}  exd5 {[%clk 0:00:01]} 4. Nf3 {[%clk 0:00:01]}  Bd6 {[%clk 0:00:01]} 5. c4 {[%clk 0:00:01]}  Nf6 {[%clk 0:00:01]} 6. Nc3 {[%clk 0:00:01]}  O-O {[%clk 0:00:01]} 7. cxd5 {[%clk 0:00:01]}  h6 {[%clk 0:00:01]} 8. Be2 {[%clk 0:00:01]}  Nbd7 {[%clk 0:00:01]} 9. O-O {[%clk 0:00:01]}  Nb6 {[%clk 0:00:01]} 10. Qb3 {[%clk 0:00:01]}  Nfxd5 {[%clk 0:00:01]} 11. Nxd5 {[%clk 0:00:01]}  Nxd5 {[%clk 0:00:01]} 12. Bc4 {[%clk 0:00:01]}  c6 {[%clk 0:00:01]} 13. Qc2 {[%clk 0:00:01]}  Bg4 {[%clk 0:00:01]} 14. Ne5 {[%clk 0:00:01]}  Qh4 {[%clk 0:00:01]} 15. g3 {[%clk 0:00:01]}  Qh5 {[%clk 0:00:01]} 16. Nxg4 {[%clk 0:00:01]}  Qxg4 {[%clk 0:00:01]} 17. Bxd5 {[%clk 0:00:01]}  cxd5 {[%clk 0:00:01]} 18. Be3 {[%clk 0:00:01]}  h5 {[%clk 0:00:00]} 19. Qd1 {[%clk 0:00:01]}  Rac8 {[%clk 0:00:00]} 20. Qxg4 {[%clk 0:00:01]}  hxg4 {[%clk 0:00:00]} 21. Rfc1 {[%clk 0:00:01]}  Rfe8 {[%clk 0:00:00]} 22. Kf1 {[%clk 0:00:01]}  Kh7 {[%clk 0:00:00]} 23. Ke2 {[%clk 0:00:01]}  Kg6 {[%clk 0:00:00]} 24. Rxc8 {[%clk 0:00:01]}  Rxc8 {[%clk 0:00:00]} 25. Rc1 {[%clk 0:00:01]}  Rxc1 {[%clk 0:00:00]} 26. Bxc1 {[%clk 0:00:01]}  Kf5 {[%clk 0:00:00]} 27. Kd3 {[%clk 0:00:01]}  Bb4 {[%clk 0:00:00]} 28. Bf4 {[%clk 0:00:00]}  Ba5 {[%clk 0:00:00]} 29. Be5 {[%clk 0:00:00]}  f6 {[%clk 0:00:00]} 30. Bd6 {[%clk 0:00:00]}  Ke6 {[%clk 0:00:00]} 31. Bb8 {[%clk 0:00:00]}  Bb6 {[%clk 0:00:00]} 32. Ke3 {[%clk 0:00:00]}  Kf5 {[%clk 0:00:00]} 33. b4 {[%clk 0:00:00]}  a6 {[%clk 0:00:00]} 34. a4 {[%clk 0:00:00]}  g5 {[%clk 0:00:00]} 35. Bd6 {[%clk 0:00:00]}  Ke6 {[%clk 0:00:00]} 36. Bf8 {[%clk 0:00:00]}  Bc7 {[%clk 0:00:00]} 37. f3 {[%clk 0:00:00]}  Kf5 {[%clk 0:00:00]} 38. a5 {[%clk 0:00:00]}  gxf3 {[%clk 0:00:00]} 39. Kxf3 {[%clk 0:00:00]}  g4+ {[%clk 0:00:00]} 40. Ke3 {[%clk 0:00:00]}  Kg5 {[%clk 0:00:00]} 41. Bc5 {[%clk 0:00:00]}  f5 {[%clk 0:00:00]} 42. Be7+ {[%clk 0:00:00]}  Kg6 {[%clk 0:00:00]} 43. Bc5 {[%clk 0:00:00]}  Kg5 {[%clk 0:00:00]} 44. Be7+ {[%clk 0:00:00]}  Kg6 {[%clk 0:00:00]} 45. Bc5 {[%clk 0:00:00]}  Kg5 {[%clk 0:00:00]} 1/2-1/2


[Site "https://www.chess.com"]

[Event "Titled Tuesday Blitz May 2 Early 2023"]
[White "Adithya A Chullikkad"]
[Black "Kim, Sergey"]
[WhiteFideId "45078734"]
[BlackFideId "13700570"]
[WhiteElo "1984"]
[BlackElo "2295"]
[Result "0-1"]
[Round "11"]
[TimeControl "180+2"]
[Date "2023.05.03"]
[WhiteClock "0:00:00"]
[BlackClock "0:00:00"]

1. d4 {[%clk 0:00:01]}  Nf6 {[%clk 0:00:01]} 2. c4 {[%clk 0:00:01]}  g6 {[%clk 0:00:01]} 3. Nc3 {[%clk 0:00:01]}  Bg7 {[%clk 0:00:01]} 4. e4 {[%clk 0:00:01]}  d6 {[%clk 0:00:01]} 5. Nf3 {[%clk 0:00:01]}  O-O {[%clk 0:00:01]} 6. Be2 {[%clk 0:00:01]}  e5 {[%clk 0:00:01]} 7. O-O {[%clk 0:00:01]}  exd4 {[%clk 0:00:01]} 8. Nxd4 {[%clk 0:00:01]}  Re8 {[%clk 0:00:01]} 9. f3 {[%clk 0:00:01]}  Nbd7 {[%clk 0:00:01]} 10. Be3 {[%clk 0:00:01]}  c6 {[%clk 0:00:01]} 11. b3 {[%clk 0:00:01]}  a5 {[%clk 0:00:01]} 12. Qc2 {[%clk 0:00:01]}  Nc5 {[%clk 0:00:01]} 13. Rad1 {[%clk 0:00:01]}  Nfd7 {[%clk 0:00:01]} 14. a3 {[%clk 0:00:01]}  Qb6 {[%clk 0:00:01]} 15. b4 {[%clk 0:00:01]}  axb4 {[%clk 0:00:01]} 16. axb4 {[%clk 0:00:01]}  Qxb4 {[%clk 0:00:01]} 17. Rb1 {[%clk 0:00:01]}  Qa5 {[%clk 0:00:01]} 18. f4 {[%clk 0:00:01]}  Nf6 {[%clk 0:00:01]} 19. e5 {[%clk 0:00:01]}  dxe5 {[%clk 0:00:01]} 20. fxe5 {[%clk 0:00:01]}  Ng4 {[%clk 0:00:01]} 21. Bxg4 {[%clk 0:00:01]}  Bxg4 {[%clk 0:00:01]} 22. h3 {[%clk 0:00:01]}  Rxe5 {[%clk 0:00:01]} 23. Bd2 {[%clk 0:00:00]}  Ree8 {[%clk 0:00:01]} 24. Nce2 {[%clk 0:00:00]}  Bxe2 {[%clk 0:00:01]} 25. Bxa5 {[%clk 0:00:00]}  Bxd4+ {[%clk 0:00:01]} 26. Kh1 {[%clk 0:00:00]}  Bxf1 {[%clk 0:00:01]} 27. Rxf1 {[%clk 0:00:00]}  Rxa5 {[%clk 0:00:01]} 28. Qd2 {[%clk 0:00:00]}  Nb3 {[%clk 0:00:01]} 29. Qb4 {[%clk 0:00:00]}  Ra1 {[%clk 0:00:01]} 30. Rxa1 {[%clk 0:00:00]}  Nxa1 {[%clk 0:00:01]} 31. Qxb7 {[%clk 0:00:00]}  c5 {[%clk 0:00:01]} 32. g3 {[%clk 0:00:00]}  Nc2 {[%clk 0:00:01]} 33. Kg2 {[%clk 0:00:00]}  Ne3+ {[%clk 0:00:01]} 34. Kf3 {[%clk 0:00:00]}  Nxc4 {[%clk 0:00:01]} 35. Qb5 {[%clk 0:00:00]}  Ne5+ {[%clk 0:00:01]} 36. Kg2 {[%clk 0:00:00]}  Rf8 {[%clk 0:00:01]} 37. h4 {[%clk 0:00:00]}  h5 {[%clk 0:00:01]} 38. Qe2 {[%clk 0:00:00]}  Ng4 {[%clk 0:00:01]} 39. Qe4 {[%clk 0:00:00]}  Kg7 {[%clk 0:00:01]} 40. Qb7 {[%clk 0:00:00]}  Re8 {[%clk 0:00:01]} 41. Qb5 {[%clk 0:00:00]}  Re3 {[%clk 0:00:01]} 42. Qa6 {[%clk 0:00:00]}  Be5 {[%clk 0:00:01]} 43. Qc6 {[%clk 0:00:00]}  Rxg3+ {[%clk 0:00:01]} 44. Kf1 {[%clk 0:00:00]}  Bd4 {[%clk 0:00:01]} 45. Qd6 {[%clk 0:00:00]}  Rf3+ {[%clk 0:00:01]} 46. Ke2 {[%clk 0:00:00]}  Rf6 {[%clk 0:00:00]} 47. Qd5 {[%clk 0:00:00]}  Re6+ {[%clk 0:00:00]} 48. Kd2 {[%clk 0:00:00]}  Ne3 {[%clk 0:00:00]} 49. Qd8 {[%clk 0:00:00]}  Nf5 {[%clk 0:00:00]} 50. Qc8 {[%clk 0:00:00]}  Nxh4 {[%clk 0:00:00]} 51. Qc6 {[%clk 0:00:00]} 0-1


[Site "https://www.chess.com"]

[Event "Titled Tuesday Blitz May 2 Early 2023"]
[White "Bilan, Danila"]
[Black "Harriott, Tyrell"]
[WhiteFideId "24161918"]
[BlackFideId "2086484"]
[WhiteElo "2182"]
[BlackElo "2107"]
[Result "1-0"]
[Round "11"]
[TimeControl "180+2"]
[Date "2023.05.03"]
[WhiteClock "0:00:00"]
[BlackClock "0:00:00"]

1. d4 {[%clk 0:00:01]}  d6 {[%clk 0:00:01]} 2. Nf3 {[%clk 0:00:01]}  Nf6 {[%clk 0:00:01]} 3. Bg5 {[%clk 0:00:01]}  Nbd7 {[%clk 0:00:01]} 4. Nbd2 {[%clk 0:00:01]}  e5 {[%clk 0:00:01]} 5. e3 {[%clk 0:00:01]}  Be7 {[%clk 0:00:01]} 6. Bc4 {[%clk 0:00:01]}  c6 {[%clk 0:00:01]} 7. c3 {[%clk 0:00:01]}  Qc7 {[%clk 0:00:01]} 8. O-O {[%clk 0:00:01]}  Nf8 {[%clk 0:00:01]} 9. h3 {[%clk 0:00:01]}  Ng6 {[%clk 0:00:01]} 10. Qc2 {[%clk 0:00:01]}  O-O {[%clk 0:00:01]} 11. Rad1 {[%clk 0:00:01]}  Re8 {[%clk 0:00:01]} 12. dxe5 {[%clk 0:00:01]}  dxe5 {[%clk 0:00:01]} 13. Ne4 {[%clk 0:00:01]}  Nh5 {[%clk 0:00:01]} 14. Qb3 {[%clk 0:00:00]}  Rf8 {[%clk 0:00:01]} 15. a4 {[%clk 0:00:00]}  h6 {[%clk 0:00:01]} 16. Bxe7 {[%clk 0:00:00]}  Qxe7 {[%clk 0:00:01]} 17. Nd6 {[%clk 0:00:00]}  Nh8 {[%clk 0:00:00]} 18. Rd2 {[%clk 0:00:00]}  e4 {[%clk 0:00:00]} 19. Nh2 {[%clk 0:00:00]}  Rb8 {[%clk 0:00:00]} 20. Rfd1 {[%clk 0:00:00]}  Nf6 {[%clk 0:00:00]} 21. Nxc8 {[%clk 0:00:00]}  Rfxc8 {[%clk 0:00:00]} 22. Ng4 {[%clk 0:00:00]}  Nxg4 {[%clk 0:00:00]} 23. Rd7 {[%clk 0:00:00]}  Qg5 {[%clk 0:00:00]} 24. Bxf7+ {[%clk 0:00:00]}  Nxf7 {[%clk 0:00:00]} 25. Qxf7+ {[%clk 0:00:00]}  Kh8 {[%clk 0:00:00]} 26. hxg4 {[%clk 0:00:00]}  Qxg4 {[%clk 0:00:00]} 27. R1d6 {[%clk 0:00:00]}  Rf8 {[%clk 0:00:00]} 28. Rxh6+ {[%clk 0:00:00]} 1-0


[Site "https://www.chess.com"]

[Event "Titled Tuesday Blitz May 2 Early 2023"]
[White "Napoli, Nicolo"]
[Black "Vivas Zamora, Fabian Ernesto"]
[WhiteFideId "813702"]
[BlackFideId "3902480"]
[WhiteElo "2308"]
[BlackElo "2262"]
[Result "1/2-1/2"]
[Round "11"]
[TimeControl "180+2"]
[Date "2023.05.03"]
[WhiteClock "0:00:00"]
[BlackClock "0:00:00"]

1. e4 {[%clk 0:00:01]}  c5 {[%clk 0:00:01]} 2. Nf3 {[%clk 0:00:01]}  d6 {[%clk 0:00:01]} 3. c3 {[%clk 0:00:01]}  Nf6 {[%clk 0:00:01]} 4. Qc2 {[%clk 0:00:01]}  Nc6 {[%clk 0:00:01]} 5. Bb5 {[%clk 0:00:01]}  Bg4 {[%clk 0:00:01]} 6. Be2 {[%clk 0:00:01]}  Rc8 {[%clk 0:00:01]} 7. O-O {[%clk 0:00:01]}  g6 {[%clk 0:00:01]} 8. h3 {[%clk 0:00:01]}  Bxf3 {[%clk 0:00:01]} 9. Bxf3 {[%clk 0:00:01]}  Bg7 {[%clk 0:00:01]} 10. d3 {[%clk 0:00:01]}  O-O {[%clk 0:00:01]} 11. Qe2 {[%clk 0:00:01]}  Ne5 {[%clk 0:00:01]} 12. Be3 {[%clk 0:00:01]}  d5 {[%clk 0:00:01]} 13. exd5 {[%clk 0:00:01]}  Nxf3+ {[%clk 0:00:01]} 14. Qxf3 {[%clk 0:00:01]}  Qxd5 {[%clk 0:00:01]} 15. Qxd5 {[%clk 0:00:01]}  Nxd5 {[%clk 0:00:01]} 16. Rd1 {[%clk 0:00:01]}  Rfd8 {[%clk 0:00:01]} 17. Na3 {[%clk 0:00:01]}  a6 {[%clk 0:00:01]} 18. Nc2 {[%clk 0:00:01]}  b5 {[%clk 0:00:01]} 19. d4 {[%clk 0:00:01]}  cxd4 {[%clk 0:00:01]} 20. Bxd4 {[%clk 0:00:01]}  b4 {[%clk 0:00:01]} 21. Bxg7 {[%clk 0:00:00]}  Kxg7 {[%clk 0:00:01]} 22. Nxb4 {[%clk 0:00:00]}  Nxb4 {[%clk 0:00:00]} 23. cxb4 {[%clk 0:00:00]}  Rxd1+ {[%clk 0:00:00]} 24. Rxd1 {[%clk 0:00:00]}  Rc2 {[%clk 0:00:00]} 1/2-1/2


[Site "https://www.chess.com"]

[Event "Titled Tuesday Blitz May 2 Early 2023"]
[White "De Souza, Cristiano Gomes"]
[Black "Panda Sambit"]
[WhiteFideId "2151758"]
[BlackFideId "25091794"]
[WhiteElo "2068"]
[BlackElo "2272"]
[Result "1-0"]
[Round "11"]
[TimeControl "180+2"]
[Date "2023.05.03"]
[WhiteClock "0:00:01"]
[BlackClock "0:00:01"]

1. d4 {[%clk 0:00:01]}  g6 {[%clk 0:00:01]} 2. c4 {[%clk 0:00:01]}  Bg7 {[%clk 0:00:01]} 3. Nf3 {[%clk 0:00:01]}  Nf6 {[%clk 0:00:01]} 4. Nc3 {[%clk 0:00:01]}  c5 {[%clk 0:00:01]} 5. d5 {[%clk 0:00:01]}  O-O {[%clk 0:00:01]} 6. e4 {[%clk 0:00:01]}  d6 {[%clk 0:00:01]} 7. h3 {[%clk 0:00:01]}  e6 {[%clk 0:00:01]} 8. Bd3 {[%clk 0:00:01]}  exd5 {[%clk 0:00:01]} 9. cxd5 {[%clk 0:00:01]}  b5 {[%clk 0:00:01]} 10. Nxb5 {[%clk 0:00:01]}  Nxe4 {[%clk 0:00:01]} 11. O-O {[%clk 0:00:01]}  Nf6 {[%clk 0:00:01]} 12. Bf4 {[%clk 0:00:01]}  Nxd5 {[%clk 0:00:01]} 13. Bxd6 {[%clk 0:00:01]}  a6 {[%clk 0:00:01]} 14. Bxf8 {[%clk 0:00:01]}  Qxf8 {[%clk 0:00:01]} 15. Bxg6 {[%clk 0:00:01]}  Nf4 {[%clk 0:00:01]} 16. Be4 {[%clk 0:00:01]}  axb5 {[%clk 0:00:01]} 17. Bxa8 {[%clk 0:00:01]}  Bxb2 {[%clk 0:00:01]} 18. Rb1 {[%clk 0:00:01]}  Qg7 {[%clk 0:00:01]} 19. g3 {[%clk 0:00:01]}  Nxh3+ {[%clk 0:00:01]} 20. Kh2 {[%clk 0:00:01]}  Nd7 {[%clk 0:00:01]} 21. Bc6 {[%clk 0:00:01]}  Nf6 {[%clk 0:00:01]} 22. Qd8+ {[%clk 0:00:01]}  Qf8 {[%clk 0:00:01]} 23. Qxf8+ {[%clk 0:00:01]}  Kxf8 {[%clk 0:00:01]} 24. Rxb2 {[%clk 0:00:01]} 1-0


[Site "https://www.chess.com"]

[Event "Titled Tuesday Blitz May 2 Early 2023"]
[White "Horak, Martin"]
[Black "Ng, Gary"]
[WhiteFideId "367095"]
[BlackFideId "2604914"]
[WhiteElo "2091"]
[BlackElo "2213"]
[Result "1-0"]
[Round "11"]
[TimeControl "180+2"]
[Date "2023.05.03"]
[WhiteClock "0:00:00"]
[BlackClock "0:00:00"]

1. e4 {[%clk 0:00:01]}  c6 {[%clk 0:00:01]} 2. d4 {[%clk 0:00:01]}  d5 {[%clk 0:00:01]} 3. Nc3 {[%clk 0:00:01]}  dxe4 {[%clk 0:00:01]} 4. Nxe4 {[%clk 0:00:01]}  Bf5 {[%clk 0:00:01]} 5. Ng3 {[%clk 0:00:01]}  Bg6 {[%clk 0:00:01]} 6. Nf3 {[%clk 0:00:01]}  Nd7 {[%clk 0:00:01]} 7. h4 {[%clk 0:00:01]}  h6 {[%clk 0:00:01]} 8. h5 {[%clk 0:00:01]}  Bh7 {[%clk 0:00:01]} 9. Bd3 {[%clk 0:00:01]}  Bxd3 {[%clk 0:00:01]} 10. Qxd3 {[%clk 0:00:01]}  Ngf6 {[%clk 0:00:01]} 11. Bd2 {[%clk 0:00:01]}  e6 {[%clk 0:00:01]} 12. O-O-O {[%clk 0:00:01]}  c5 {[%clk 0:00:01]} 13. Ne4 {[%clk 0:00:01]}  cxd4 {[%clk 0:00:01]} 14. Qxd4 {[%clk 0:00:01]}  Qc7 {[%clk 0:00:01]} 15. Be3 {[%clk 0:00:01]}  Rc8 {[%clk 0:00:01]} 16. Rd2 {[%clk 0:00:01]}  Nxe4 {[%clk 0:00:00]} 17. Qxe4 {[%clk 0:00:01]}  Bc5 {[%clk 0:00:00]} 18. Rhd1 {[%clk 0:00:01]}  Nf6 {[%clk 0:00:00]} 19. Qa4+ {[%clk 0:00:00]}  Kf8 {[%clk 0:00:00]} 20. Bxc5+ {[%clk 0:00:00]}  Qxc5 {[%clk 0:00:00]} 21. Nd4 {[%clk 0:00:00]}  Kg8 {[%clk 0:00:00]} 22. f3 {[%clk 0:00:00]}  Nxh5 {[%clk 0:00:00]} 23. g4 {[%clk 0:00:00]}  Nf6 {[%clk 0:00:00]} 24. Nb5 {[%clk 0:00:00]}  a6 {[%clk 0:00:00]} 25. Nc3 {[%clk 0:00:00]}  Kh7 {[%clk 0:00:00]} 26. Qf4 {[%clk 0:00:00]}  Qg5 {[%clk 0:00:00]} 27. Qxg5 {[%clk 0:00:00]}  hxg5 {[%clk 0:00:00]} 28. Rh1+ {[%clk 0:00:00]}  Kg6 {[%clk 0:00:00]} 29. Rxh8 {[%clk 0:00:00]}  Rxh8 {[%clk 0:00:00]} 30. b4 {[%clk 0:00:00]}  Rc8 {[%clk 0:00:00]} 31. Kb2 {[%clk 0:00:00]}  Rc4 {[%clk 0:00:00]} 32. Kb3 {[%clk 0:00:00]}  b5 {[%clk 0:00:00]} 33. a4 {[%clk 0:00:00]}  Rf4 {[%clk 0:00:00]} 34. axb5 {[%clk 0:00:00]}  axb5 {[%clk 0:00:00]} 35. Rd3 {[%clk 0:00:00]}  Kh6 {[%clk 0:00:00]} 36. Nxb5 {[%clk 0:00:00]}  Nd5 {[%clk 0:00:00]} 37. c3 {[%clk 0:00:00]}  f5 {[%clk 0:00:00]} 38. Nd4 {[%clk 0:00:00]}  Kg6 {[%clk 0:00:00]} 39. Nxe6 {[%clk 0:00:00]}  Nf6 {[%clk 0:00:00]} 40. Nxf4+ {[%clk 0:00:00]}  gxf4 {[%clk 0:00:00]} 41. gxf5+ {[%clk 0:00:00]}  Kxf5 {[%clk 0:00:00]} 42. b5 {[%clk 0:00:00]}  g5 {[%clk 0:00:00]} 43. b6 {[%clk 0:00:00]}  g4 {[%clk 0:00:00]} 44. fxg4+ {[%clk 0:00:00]}  Nxg4 {[%clk 0:00:00]} 45. b7 {[%clk 0:00:00]}  Ke4 {[%clk 0:00:00]} 46. Rd4+ {[%clk 0:00:00]}  Ke3 {[%clk 0:00:00]} 47. b8=Q {[%clk 0:00:00]} 1-0


[Site "https://www.chess.com"]

[Event "Titled Tuesday Blitz May 2 Early 2023"]
[White "Sai Han Thiha"]
[Black "Biriukov, Ilja"]
[WhiteFideId "13012290"]
[BlackFideId "4113373"]
[WhiteElo "1954"]
[BlackElo "2426"]
[Result "1-0"]
[Round "11"]
[TimeControl "180+2"]
[Date "2023.05.03"]
[WhiteClock "0:00:01"]
[BlackClock "0:00:00"]

1. d4 {[%clk 0:00:01]}  Nf6 {[%clk 0:00:01]} 2. c4 {[%clk 0:00:01]}  g6 {[%clk 0:00:01]} 3. Nc3 {[%clk 0:00:01]}  Bg7 {[%clk 0:00:01]} 4. e4 {[%clk 0:00:01]}  d6 {[%clk 0:00:01]} 5. Nf3 {[%clk 0:00:01]}  O-O {[%clk 0:00:01]} 6. Be2 {[%clk 0:00:01]}  Nbd7 {[%clk 0:00:01]} 7. Be3 {[%clk 0:00:01]}  e5 {[%clk 0:00:01]} 8. d5 {[%clk 0:00:01]}  a5 {[%clk 0:00:01]} 9. Nd2 {[%clk 0:00:01]}  Nc5 {[%clk 0:00:01]} 10. g4 {[%clk 0:00:01]}  b6 {[%clk 0:00:01]} 11. h4 {[%clk 0:00:01]}  Ne8 {[%clk 0:00:01]} 12. h5 {[%clk 0:00:01]}  g5 {[%clk 0:00:01]} 13. h6 {[%clk 0:00:01]}  Bf6 {[%clk 0:00:01]} 14. Nf1 {[%clk 0:00:01]}  Kh8 {[%clk 0:00:01]} 15. Ng3 {[%clk 0:00:01]}  Rg8 {[%clk 0:00:01]} 16. Kf1 {[%clk 0:00:01]}  Be7 {[%clk 0:00:01]} 17. Kg2 {[%clk 0:00:01]}  Nd7 {[%clk 0:00:01]} 18. a3 {[%clk 0:00:01]}  Nf8 {[%clk 0:00:01]} 19. Nf5 {[%clk 0:00:01]}  Bxf5 {[%clk 0:00:01]} 20. exf5 {[%clk 0:00:01]}  f6 {[%clk 0:00:01]} 21. Ne4 {[%clk 0:00:01]}  Qd7 {[%clk 0:00:01]} 22. b4 {[%clk 0:00:01]}  Ra6 {[%clk 0:00:00]} 23. c5 {[%clk 0:00:01]}  dxc5 {[%clk 0:00:00]} 24. Bxa6 {[%clk 0:00:01]} 1-0


[Site "https://www.chess.com"]

[Event "Titled Tuesday Blitz May 2 Early 2023"]
[White "Kiselev, Pavel"]
[Black "Koridze, Lile"]
[WhiteFideId "4191102"]
[BlackFideId "13612514"]
[WhiteElo "2145"]
[BlackElo "2047"]
[Result "0-1"]
[Round "11"]
[TimeControl "180+2"]
[Date "2023.05.03"]
[WhiteClock "0:00:00"]
[BlackClock "0:00:00"]

1. Nf3 {[%clk 0:00:01]}  Nf6 {[%clk 0:00:01]} 2. c4 {[%clk 0:00:01]}  e6 {[%clk 0:00:01]} 3. d4 {[%clk 0:00:01]}  d5 {[%clk 0:00:01]} 4. g3 {[%clk 0:00:01]}  Bb4+ {[%clk 0:00:01]} 5. Bd2 {[%clk 0:00:01]}  Be7 {[%clk 0:00:01]} 6. Bg2 {[%clk 0:00:01]}  O-O {[%clk 0:00:01]} 7. O-O {[%clk 0:00:01]}  c6 {[%clk 0:00:01]} 8. Qc2 {[%clk 0:00:01]}  b6 {[%clk 0:00:01]} 9. Bf4 {[%clk 0:00:01]}  Bb7 {[%clk 0:00:01]} 10. b3 {[%clk 0:00:01]}  Nh5 {[%clk 0:00:01]} 11. Bc1 {[%clk 0:00:01]}  f5 {[%clk 0:00:01]} 12. Bb2 {[%clk 0:00:01]}  Nd7 {[%clk 0:00:01]} 13. Ne5 {[%clk 0:00:01]}  Nhf6 {[%clk 0:00:01]} 14. f3 {[%clk 0:00:01]}  Rc8 {[%clk 0:00:01]} 15. Nd2 {[%clk 0:00:01]}  c5 {[%clk 0:00:01]} 16. Nxd7 {[%clk 0:00:01]}  Qxd7 {[%clk 0:00:01]} 17. dxc5 {[%clk 0:00:01]}  Bxc5+ {[%clk 0:00:01]} 18. Kh1 {[%clk 0:00:01]}  b5 {[%clk 0:00:01]} 19. cxb5 {[%clk 0:00:01]}  Qxb5 {[%clk 0:00:01]} 20. Qd1 {[%clk 0:00:01]}  Ba6 {[%clk 0:00:01]} 21. e4 {[%clk 0:00:01]}  dxe4 {[%clk 0:00:01]} 22. fxe4 {[%clk 0:00:01]}  Ng4 {[%clk 0:00:01]} 23. exf5 {[%clk 0:00:00]}  exf5 {[%clk 0:00:00]} 24. Nc4 {[%clk 0:00:00]}  Nf2+ {[%clk 0:00:00]} 25. Rxf2 {[%clk 0:00:00]}  Bxf2 {[%clk 0:00:00]} 26. Nd6 {[%clk 0:00:00]}  Qd7 {[%clk 0:00:00]} 27. Nxc8 {[%clk 0:00:00]}  Qxc8 {[%clk 0:00:00]} 28. Qd5+ {[%clk 0:00:00]}  Kh8 {[%clk 0:00:00]} 29. Qe5 {[%clk 0:00:00]}  Qd7 {[%clk 0:00:00]} 30. Qd5 {[%clk 0:00:00]}  Qxd5 {[%clk 0:00:00]} 31. Bxd5 {[%clk 0:00:00]}  Rd8 {[%clk 0:00:00]} 32. Bf3 {[%clk 0:00:00]}  Rd3 {[%clk 0:00:00]} 33. Bg2 {[%clk 0:00:00]}  Be3 {[%clk 0:00:00]} 34. Re1 {[%clk 0:00:00]}  h6 {[%clk 0:00:00]} 35. Bf1 {[%clk 0:00:00]}  Bb7+ {[%clk 0:00:00]} 36. Bg2 {[%clk 0:00:00]}  Bxg2+ {[%clk 0:00:00]} 37. Kxg2 {[%clk 0:00:00]}  Rd2+ {[%clk 0:00:00]} 38. Kf3 {[%clk 0:00:00]}  Rxb2 {[%clk 0:00:00]} 39. Rxe3 {[%clk 0:00:00]}  Rxa2 {[%clk 0:00:00]} 40. h4 {[%clk 0:00:00]}  Kh7 {[%clk 0:00:00]} 41. Kf4 {[%clk 0:00:00]}  Rf2+ {[%clk 0:00:00]} 42. Ke5 {[%clk 0:00:00]}  Kg6 {[%clk 0:00:00]} 43. Kd6 {[%clk 0:00:00]}  Kf7 {[%clk 0:00:00]} 44. Kc7 {[%clk 0:00:00]}  a5 {[%clk 0:00:00]} 45. Kb6 {[%clk 0:00:00]}  Ra2 {[%clk 0:00:00]} 46. Re5 {[%clk 0:00:00]}  Kf6 {[%clk 0:00:00]} 47. Rxa5 {[%clk 0:00:00]}  Rxa5 {[%clk 0:00:00]} 48. Kxa5 {[%clk 0:00:00]}  g5 {[%clk 0:00:00]} 49. hxg5+ {[%clk 0:00:00]}  hxg5 {[%clk 0:00:00]} 50. Kb4 {[%clk 0:00:00]}  f4 {[%clk 0:00:00]} 51. gxf4 {[%clk 0:00:00]}  g4 {[%clk 0:00:00]} 52. Kc5 {[%clk 0:00:00]}  g3 {[%clk 0:00:00]} 53. b4 {[%clk 0:00:00]}  g2 {[%clk 0:00:00]} 54. b5 {[%clk 0:00:00]}  g1=Q+ {[%clk 0:00:00]} 55. Kc6 {[%clk 0:00:00]}  Ke6 {[%clk 0:00:00]} 56. b6 {[%clk 0:00:00]}  Qc1+ {[%clk 0:00:00]} 57. Kb7 {[%clk 0:00:00]}  Kd7 {[%clk 0:00:00]} 58. Ka8 {[%clk 0:00:00]}  Kc6 {[%clk 0:00:00]} 59. b7 {[%clk 0:00:00]}  Qa3+ {[%clk 0:00:00]} 60. Kb8 {[%clk 0:00:00]}  Qd6+ {[%clk 0:00:00]} 61. Ka8 {[%clk 0:00:00]}  Qa3+ {[%clk 0:00:00]} 62. Kb8 {[%clk 0:00:00]}  Kb6 {[%clk 0:00:00]} 63. Kc8 {[%clk 0:00:00]}  Qf8+ {[%clk 0:00:00]} 64. Kd7 {[%clk 0:00:00]}  Kxb7 {[%clk 0:00:00]} 0-1


[Site "https://www.chess.com"]

[Event "Titled Tuesday Blitz May 2 Early 2023"]
[White "Gatterer, Florian"]
[Black "Kiseljova, Marya"]
[WhiteFideId "811688"]
[BlackFideId "4155009"]
[WhiteElo "2221"]
[BlackElo "1851"]
[Result "1/2-1/2"]
[Round "11"]
[TimeControl "180+2"]
[Date "2023.05.03"]
[WhiteClock "0:00:01"]
[BlackClock "0:00:01"]

1. e4 {[%clk 0:00:01]}  c5 {[%clk 0:00:01]} 2. Nf3 {[%clk 0:00:01]}  Nc6 {[%clk 0:00:01]} 3. Bb5 {[%clk 0:00:01]}  e5 {[%clk 0:00:01]} 4. O-O {[%clk 0:00:01]}  Bd6 {[%clk 0:00:01]} 5. c3 {[%clk 0:00:01]}  a6 {[%clk 0:00:01]} 6. Bc4 {[%clk 0:00:01]}  b5 {[%clk 0:00:01]} 7. Bb3 {[%clk 0:00:01]}  c4 {[%clk 0:00:01]} 8. Bc2 {[%clk 0:00:01]}  Nge7 {[%clk 0:00:01]} 9. d4 {[%clk 0:00:01]}  cxd3 {[%clk 0:00:01]} 10. Bxd3 {[%clk 0:00:01]}  Bc7 {[%clk 0:00:01]} 11. a4 {[%clk 0:00:01]}  b4 {[%clk 0:00:01]} 12. c4 {[%clk 0:00:01]}  d6 {[%clk 0:00:01]} 13. h3 {[%clk 0:00:01]}  O-O {[%clk 0:00:01]} 14. b3 {[%clk 0:00:01]}  h6 {[%clk 0:00:01]} 15. Be3 {[%clk 0:00:01]}  f5 {[%clk 0:00:01]} 16. exf5 {[%clk 0:00:01]} 1/2-1/2


[Site "https://www.chess.com"]